Workbook

Sheet Foglio1
U2: Client | AF2: Job
AF3: Unit
U4: Plant
AF5: Sheet | AK5: 1 | AN5: of | AP5: 2
B6: V/L SEPARATOR PROCESS CALCULATION SHEET | AI6: V. 0.1b by M.Meloni
B8: 1 | C8: OPERATING AND DESIGN CONDITIONS | W8: VESSEL AND INTERNAL OPTIONS
B9: 2 | M9: OPERATING | R9: DESIGN | W9: Internal diameter | AF9: mm | AI9: 1200
B10: 3 | C10: Temperature | J10: °C | M10: 45 | R10: 60 | W10: Top head type | AI10: Emispherical
B11: 4 | C11: Pressure | J11: Bar a | M11: 1 | R11: 1 | W11: Bottom head type | AI11: Emispherical
B12: 5 | C12: PROCESS DATA | W12: CRITICAL VELOCITY
B13: 6 | M13: VAPOUR | R13: LIQUID | W13: Max allowable velocity | AF13: %Vc | AI13: 100
B14: 7 | C14: Mass flow rate | J14: kg/h | M14: 5000 | R14: 5000 | W14: DEMISTER/VANE PACK AND OTHER
B15: 8 | C15: Density | J15: kg/m3 | M15: 1.12 | R15: 1000 | W15: Demister/Vane pack | AI15: Demister
B16: 9 | C16: Viscosity | J16: cP | M16: 0.01 | R16: 1.15 | W16: Demister height | AF16: mm | AI16: 150
B17: 10 | C17: MW | M17: 28.8 | R17: 18 | W17: Demister diameter | AF17: mm | AI17: 1100
B18: 11 | C18: Surface tension | J18: dyne/cm | R18: 30 | W18: Vortex breaker on bottom | AI18: None
B19: 12 | C19: Z factor | M19: 0.98 | W19: MAIN NOZZLE OPTIONS
B20: 13 | C20: LEVELS | W20: Inlet nozzle DN | AF20: mm | AI20: 250
B21: 14 | K21: SELECTED | P21: HOLD UP TIME | W21: Inlet NZ distance from HHLL | AF21: mm | AI21: 300
B22: 15 | C22: HHLL - HLL | I22: mm | K22: 250 | P22: =HHLLtime -> 3.392920066 | U22: min | W22: Inlet NZ distance from UTL | AF22: mm | AI22: 1600
B23: 16 | C23: HLL - NLL | I23: mm | K23: 250 | P23: =HLLtime -> 3.392920066 | U23: min | W23: Inlet device | AI23: Internal deflector
B24: 17 | C24: NLL - LLL | I24: mm | K24: 250 | P24: =NLLtime -> 3.392920066 | U24: min | W24: Inlet position | AI24: None
B25: 18 | C25: LLL - LLLL | I25: mm | K25: 250 | P25: =LLLtime -> 3.392920066 | U25: min | W25: Vapour outlet nozzle | AF25: mm | AI25: 250
B26: 19 | C26: LLLL - T.L. | I26: mm | K26: 300 | P26: =LLLLtime -> 4.071504079 | U26: min | W26: Liquid outlet nozzle | AF26: mm | AI26: 50
B27: 20 | C27: MATERIALS
B28: 21 | C28: Shell and heads material | O28: Carbon steel | W28: Corrosion allowance | AF28: mm | AI28: 3
B29: 22 | C29: Shell thickness | L29: mm | O29: 5 | W29: Head thickness | AF29: mm | AI29: 3
B30: 23 | C30: AUXILIARY NOZZLES
B31: 24 | M31: SELECTED | R31: SUGGESTED | AG31: SELECTED | AL31: SUGGESTED
B32: 25 | C32: Vent | J32: mm | M32: =R32 -> 50 | R32: =vent_size(Volume) -> 50 | W32: Drain | AD32: mm | AG32: =AL32 -> 50 | AL32: =drain_size(Volume) -> 50
C33: Steam-out | J33: mm | M33: =R33 -> 50 | R33: =steamout_size(Volume) -> 50 | W33: Manhole | AD33: mm | AG33: 600 | AL33: =manhole_size(O45) -> 600
C34: Pump recycle | J34: mm | M34: 50 | W34: Relief/PSV | AD34: mm | AG34: 100
B35: 26 | C35: RESULTS
B36: 27 | C36: SEPARATION PERFORMANCE | W36: DEMISTER/VANE PACK PERFORMANCE
B37: 28 | C37: Critical velocity | L37: m/s | O37: =Vc -> 2.090478414 | W37: K-value max | AF37: m/s | AI37: =Demister_K -> 0.06
B38: 29 | C38: Max allowable velocity | L38: m/s | O38: =maxallowVc -> 2.090478414 | W38: Max allowable velocity | AF38: m/s | AI38: =Demister_critV -> 1.791838641
B39: 30 | C39: Actual velocity | L39: m/s | O39: =actualvelocity -> 1.096470893 | S39: =O39/O38 -> 0.5245071586 | W39: Suggested design velocity | AF39: m/s | AI39: =Calculation!B80 -> 1.433470913
B40: 31 | C40: Droplet diameter w/o dem. | L40: um | O40: =dropletdiam -> 226 | W40: Actual velocity (demister diam.) | AF40: m/s | AI40: =Demister_actV -> 1.30489098 | AM40: =AI40/AI38 -> 0.7282413442
B41: 32 | C41: Droplet diameter with dem. | L41: um | O41: =dropletwithdemister -> 99.5% <10 micron | W41: Min speed (performance) | AF41: m/s | AI41: =AI38*30% -> 0.5375515922
B42: 33 | C42: Separation efficiency | L42: %wt | W42: Wet pressure drop demister | AF42: mmH2O | AI42: =Demister_pressuredrop -> 9.668841488
B43: 34 | W43: DISTANCES AND DIAMETER | AG43: SELECTED | AL43: MINIMUM
B44: 35 | C44: MAIN DIMENSIONS | W44: Distance from inlet NZ | AD44: mm | AG44: =AG53-Distance_dem_UTL -> 1100
B45: 36 | C45: Internal Diameter | L45: mm | O45: =Diameter -> 1200 | W45: Distance from upper TL | AD45: mm | AG45: 500 | AL45: =Dem_distanceUTL -> 550
B46: 37 | C46: TLTL height | L46: mm | O46: =TLTL_Height -> 3200 | W46: Diameter | AD46: mm | AG46: =Demister_D -> 1100 | AL46: =Demister_minD -> 938.7076363
B47: 38 | C47: Total height | L47: mm | O47: =Total_Height -> 4400 | W47: INLET NOZZLE
B48: 39 | C48: Volume TL/TL | L48: m3 | O48: =VolumeTLTL -> 4.976282763 | AG48: SELECTED | AL48: SUGGESTED
B49: 40 | C49: Liquid volume (HHLL-outlet NZ) | L49: m3 | O49: =Calculation!B59 -> 1.922654322 | W49: Inlet nozzle | AD49: mm | AG49: =AI20 -> 250
B50: 41 | C50: Total volume | L50: m3 | O50: =Volume -> 5.881060683 | W50: Vapour velocity | AD50: m/s | AG50: =inlet_n_vel -> 25.29098359
B51: 42 | C51: Cross sectional area | L51: m2 | O51: =Calculation!B1 -> 1.130973355 | W51: RhoV2 | AD51: Pa | AG51: =rhov2_inN -> 1431.176908
B52: 43 | C52: L/D | O52: =O46/O45 -> 2.666666667 | W52: Inlet NZ distance HHLL | AD52: mm | AG52: =AI21 -> 300 | AL52: =Inlet_distance_from_HHLL -> 450
B53: 44 | W53: Inlet distance UTL | AD53: mm | AG53: =AI22 -> 1600 | AL53: =InletNZ_distance_top -> 1600
B54: 45 | C54: WEIGHT | W54: VAPOUR OUTLET NOZZLE
B55: 46 | C55: Shell | L55: kg | O55: =Calculation!B91 -> 762.6520273 | AG55: SELECTED | AL55: SUGGESTED
B56: 47 | C56: Heads | L56: kg | O56: =Calculation!B92+Calculation!B93 -> 215.2130547 | W56: Vap. Outlet nozzle | AD56: mm | AG56: =Outlet_nozzle_DN -> 250
B57: 48 | C57: Auxiliary nozzles/manhole | L57: kg | W57: Vapour velocity | AD57: m/s | AG57: =vapourO_velocity -> 25.26268938
B58: 49 | C58: Total weight (no liquid) | L58: kg | O58: =O55+O57+O56 -> 977.8650819 | W58: RhoV2 | AD58: Pa | AG58: =rhov2_Voutlet -> 714.7878917
B59: 50 | W59: LIQUID OUTLET NOZZLE
B60: 51 | AG60: SELECTED | AL60: SUGGESTED
B61: 52 | W61: Liq. Outlet nozzle | AD61: mm | AG61: =AI26 -> 50
B62: 53 | W62: Liquid velocity | AD62: m/s | AG62: =liquid_velocity_O -> 0.7073553026
B63: 54
B64: 55
B65: 56
B66: 57
B67: 58
B68: 59
B69: 60
U72: Client | AF72: Job
AF73: Unit
U74: Plant
AF75: Sheet | AK75: 2 | AN75: of | AP75: 2
B76: V/L SEPARATOR PROCESS CALCULATION SHEET
B78: 1
B79: 2 | Y79: DIMENSIONS
B80: 3 | Y80: Shell internal Diameter | AH80: mm | AK80: =O45 -> 1200
B81: 4 | D81: =Calculation!B86 -> 600 | Y81: Tangent/Tangent height | AH81: mm | AK81: =O46 -> 3200
B82: 5 | Y82: Total height | AH82: mm | AK82: =O47 -> 4400
B83: 6
B84: 7
B85: 8
B86: 9 | V86: =Distance_dem_UTL -> 500
B87: 10 | Y87: DEMISTER
B88: 11 | Y88: Type | AH88: mm | AK88: =Demister -> Demister
B89: 12 | T89: =Demister_H -> 150 | Y89: Height | AH89: mm | AK89: =Demister_H -> 150
B90: 13 | G90: =AI22 -> 1600 | Y90: Diameter | AH90: mm | AK90: =Demister_D -> 1100
B91: 14 | M91: =Demister_D -> 1100
B92: 15 | V92: =G90-V86 -> 1100
B93: 16
B94: 17 | D94: =O46 -> 3200 | M94: =Diameter -> 1200
B95: 18 | Y95: OTHER
B96: 19 | Y96: Inlet Device | AK96: =Inlet_device -> Internal deflector
B97: 20 | Y97: Vortex breaker | AK97: =AI18 -> None
B98: 21 | G98: =AI21 -> 300
B99: 22
B100: 23 | M100: HHLL
B101: 24
B102: 25 | G102: =K22+K23+K24+K25 -> 1000
B103: 26
B104: 27 | M104: LLLL
B105: 28 | G105: =K26 -> 300
B106: 29
B107: 30
B108: 31 | D108: =Calculation!B87 -> 600
B109: 32
B110: 33
B111: 34
B112: 35
B113: 36
B114: 37
B115: 38
B116: 39
B117: 40 | Q117: All measures are in mm
B118: 41 | C118: SUGGESTED NOZZLE TABLE
B119: 42 | C119: ITEM | F119: SERVICE | S119: DIAMETER (mm) | X119: TYPE | AB119: RATING | AF119: FACING | AJ119: NOTES
B120: 43 | C120: N1 | F120: Process fluid inlet | S120: =Inlet_nozzle_DN -> 250 | AB120: PN16 | AF120: RF
B121: 44 | C121: N2 | F121: Vapour outlet | S121: =Outlet_nozzle_DN -> 250 | AB121: PN16 | AF121: RF
B122: 45 | C122: N3 | F122: Liquid outlet | S122: =OutletnozzleL_DN -> 50 | AB122: PN16 | AF122: RF
B123: 46 | C123: N4 | F123: Vent | S123: =M32 -> 50 | AB123: PN16 | AF123: RF
B124: 47 | C124: N5 | F124: Drain | S124: =AG32 -> 50 | AB124: PN16 | AF124: RF
B125: 48 | C125: N6 | F125: Steam out | S125: =M33 -> 50 | AB125: PN16 | AF125: RF
B126: 49 | C126: N7 | F126: PSV connection | S126: =AG34 -> 100 | AB126: PN16 | AF126: RF
B127: 50 | C127: N8 | F127: Pump recycle | S127: =M34 -> 50 | AB127: PN16 | AF127: RF
B128: 51 | C128: N9 | F128: Manhole | S128: =AG33 -> 600 | AB128: PN16 | AF128: RF
B129: 52
B130: 53 | C130: N10 | F130: Temperature transmitter | S130: HOLD
B131: 54 | C131: N11a | F131: Level connection | S131: HOLD | X131: DP Cell
B132: 55 | C132: N11b | F132: Level connection | S132: HOLD | X132: DP Cell
B133: 56 | C133: N12a | F133: Level connection | S133: HOLD | X133: DP Cell
B134: 57 | C134: N12b | F134: Level connection | S134: HOLD | X134: DP Cell
B135: 58 | C135: N13 | F135: Pressure transmitter | S135: HOLD
B136: 59
B137: 60
B138: 61
B139: 62

Sheet Calculation
A1: Area | B1: =Foglio1!AI9*Foglio1!AI9*PI()/4/10^6 -> 1.130973355 | C1: m2
A2: Volume head top | B2: =volume_head(top_head,Diameter) -> 0.45238896 | C2: m3
A3: Volume head bottom | B3: =volume_head(bottom_head,Diameter) -> 0.45238896 | C3: m3
A5: TLTL height | B5: =Foglio1!K22+Foglio1!K23+Foglio1!K24+Foglio1!K25+Foglio1!K26+Foglio1!AI21+Foglio1!AI22 -> 3200 | C5: mm
A6: Total height | B6: =Foglio1!K22+Foglio1!K23+Foglio1!K24+Foglio1!K25+Foglio1!K26+Foglio1!AI21+Foglio1!AI22+B86+B87 -> 4400 | C6: mm
A7: Volume TL-TL | B7: =B6/1000*B1 -> 4.976282763 | C7: m3
A8: Total volume | B8: =VolumeTLTL+volume_head_top+volume_head_bottom -> 5.881060683 | C8: m3
A10: w | B10: =massflowL/massflowV*(rhoV/rhoL)^0.5 -> 0.03346640106
A11: k_critical | B11: =k_critical(w_kc) -> 0.07
A12: Critical velocity | B12: =k_critical2*((rhoL-rhoV)/(rhoV))^0.5 -> 2.090478414 | C12: m/s
A13: Max allowable vel | B13: =Vc*maxpercVc/100 -> 2.090478414 | C13: m/s
A14: Actual velocity | B14: =massflowV/rhoV/3600/Area -> 1.096470893 | C14: m/s
A18: dp first trial | B18: =20/1000000 -> 2e-05
A19: Re | B19: =rhoL*actualvelocity*B18/viscosity_V -> 2.192941786
A20: cre2 | B20: =c_re_2(rhoV,rhoL,B18,viscosity_V) -> 1.170252647
A21: Cd | B21: =C_df(cre_2,B18) -> 200725.9908
A22: dropletfinal | B22: =droplet(rhoL,rhoV,viscosity_V,actualvelocity)*10^6 -> 226
A25: Vol flow inlet | B25: =(massflowV/rhoV+massflowL/rhoL)/3600 -> 1.241468254 | C25: m3/s
A26: Velocity inlet nozzle | B26: =B25/(Inlet_nozzle_DN*Inlet_nozzle_DN*PI()/4/1000000) -> 25.29098359 | C26: m/s
A27: Mixed density | B27: =(massflowL+massflowV)/(massflowV/rhoV+massflowL/rhoL) -> 2.237494007 | C27: kg/m3
A28: rhov2 | B28: =mixed_density*inlet_n_vel^2 -> 1431.176908 | C28: Pa
A30: Vol flow vap outlet | B30: =(massflowV/rhoV)/3600 -> 1.240079365 | C30: m3/s
A31: Velocity outlet nozzle | B31: =B30/(Outlet_nozzle_DN*Outlet_nozzle_DN*PI()/4/1000000) -> 25.26268938 | C31: m/s
A32: Vapour density | B32: =(massflowV)/(massflowV/rhoV) -> 1.12 | C32: kg/m3
A33: rhov2 | B33: =Vapour_outlet_density*vapourO_velocity^2 -> 714.7878917 | C33: Pa
A35: Vol flow liquid outlet | B35: =(massflowL/rhoL)/3600 -> 0.001388888889 | C35: m3/s
A36: Velocity outlet nozzle | B36: =B35/(OutletnozzleL_DN*OutletnozzleL_DN*PI()/4/1000000) -> 0.7073553026 | C36: m/s
A37: Liquid density | B37: =rhoL -> 1000 | C37: kg/m3
A38: rhov2 | B38: =B37*liquid_velocity_O^2 -> 500.3515242 | C38: Pa
A42: Hold up times
A43: HHLL-HLL | B43: =Foglio1!K22 -> 250 | C43: mm
A44: HLL-NLL | B44: =Foglio1!K23 -> 250 | C44: mm
A45: NLL-LLL | B45: =Foglio1!K24 -> 250 | C45: mm
A46: LLL-LLLL | B46: =Foglio1!K25 -> 250 | C46: mm
A47: LLLL-T.L. | B47: =Foglio1!K26 -> 300 | C47: mm
A48: HHLL-HLL | B48: =B43/1000*Area -> 0.2827433388 | C48: m3
A49: HLL-NLL | B49: =B44/1000*Area -> 0.2827433388 | C49: m3
A50: NLL-LLL | B50: =B45/1000*Area -> 0.2827433388 | C50: m3
A51: LLL-LLLL | B51: =B46/1000*Area -> 0.2827433388 | C51: m3
A52: LLLL-T.L. | B52: =B47/1000*Area -> 0.3392920066 | C52: m3
A53: HHLL-HLL | B53: =B48/Vol_flow_liquid_outlet/60 -> 3.392920066 | C53: min
A54: HLL-NLL | B54: =B49/Vol_flow_liquid_outlet/60 -> 3.392920066 | C54: min
A55: NLL-LLL | B55: =B50/Vol_flow_liquid_outlet/60 -> 3.392920066 | C55: min
A56: LLL-LLLL | B56: =B51/Vol_flow_liquid_outlet/60 -> 3.392920066 | C56: min
A57: LLLL-T.L. | B57: =B52/Vol_flow_liquid_outlet/60 -> 4.071504079 | C57: min
A58: Liquid level HHLL-TL | B58: =B50+B51+B52+B49+B48 -> 1.470265362 | C58: m3
A59: Total liquid volume | B59: =B58+volume_head_bottom -> 1.922654322 | C59: m3
A61: Inlet nozzle distances
A62: demister | B62: =IF(Diameter<=400,300,0.75*Diameter)+Demister_H+Dem_distanceUTL -> 1600 | C62: mm
A63: Dem Distance from UTL | B63: =0.5*Demister_D -> 550 | C63: mm
A64: no demister | B64: =IF(Diameter<=1200,900,0.75*Diameter) -> 900 | C64: mm
A65: selected | B65: =IF(Demister="None",B64,B62) -> 1600 | C65: mm
A67: Inlet distance from HHLL
A68: calculation1 | B68: =450-Inlet_nozzle_DN/2 -> 325 | C68: mm
A69: selected | B69: =IF(B68<300,B68,450) -> 450 | C69: mm
A71: Demister/vane pack
A72: Operating pressure | B72: =Foglio1!M11 -> 1
A73: K | B73: =k_r_demister(Op_pressure) -> 0.06 | C73: m/s
A74: Critical velocity | B74: =IF(Demister<>"None",Demister_K*SQRT((rhoL-rhoV)/rhoV),"NO DEMISTER") -> 1.791838641 | C74: m/s
A75: Min. area | B75: =IF(Demister<>"None",(massflowV/rhoV)/3600/Demister_critV,"NO DEMISTER") -> 0.6920708913 | C75: m2
A76: Min. diameter | B76: =IF(Demister<>"None",1000*(4/PI()*B75)^0.5,"NO DEMISTER") -> 938.7076363 | C76: mm
A77: Actual velocity | B77: =IF(Demister<>"None",(massflowV/rhoV)/3600/(Demister_D^2*PI()/4/1000000),"NO DEMISTER") -> 1.30489098 | C77: m/s
A78: Dropletdiam w dem | B78: =IF(Demister="Demister","99.5% <10 micron",IF(Demister="Vane pack","99.5%<40 micron","NO DEMISTER")) -> 99.5% <10 micron
A79: Demister height | B79: =Demister_H -> 150
A80: Suggested design vel. | B80: =IF(Demister_critV="NO DEMISTER","NO DEMISTER",Demister_critV*0.8) -> 1.433470913
A83: Pressure drop demister | B83: =3.38*Demister_actV^2*Vapour_outlet_density*Demister_height/100 -> 9.668841488 | C83: mmH2O | E83: Utilizza formula da ludvig adattata ad unità di misura SI
A86: Head top height | B86: =head_diameter(top_head,Diameter) -> 600 | C86: mm
A87: Head bottom height | B87: =head_diameter(bottom_head,Diameter) -> 600 | C87: mm
A89: Weight
A90: Area | B90: =(PI()/4*((Diameter+2*Foglio1!O29+2*Foglio1!AI28)/1000)^2)-PI()/4*(Diameter/1000)^2 -> 0.0303603514 | C90: m2
A91: Shell | B91: =B90*TLTL_Height/1000*density_material(Material_shell) -> 762.6520273 | C91: kg
A92: Heads top | B92: =volume_head(top_head,Diameter+2*Foglio1!AI29+2*Foglio1!AI28)*density_material(Material_shell)-volume_head(top_head,Diameter)*density_material(Material_shell) -> 107.6065273 | C92: kg
A93: Heads bottom | B93: =volume_head(bottom_head,Diameter+2*Foglio1!AI29+2*Foglio1!AI28)*density_material(Material_shell)-volume_head(bottom_head,Diameter)*density_material(Material_shell) -> 107.6065273 | C93: kg

Sheet VL+demister (hidden)

Sheet Foglio2 (hidden)
A1: Demister k (snamprogetti)
B2: Kr
A3: X | B3: Y | C3: LogX | D3: K1 | E3: K2
A4: 0.01009 | B4: 0.060132 | C4: =LOG(A4) -> -1.996108834 | D4: =0.0484*LOG(A4)+0.1568 -> 0.06018833245
A5: 0.019632 | B5: 0.074437 | C5: =LOG(A5) -> -1.707035455 | D5: =0.0484*LOG(A5)+0.1568 -> 0.074179484
A6: 0.081312 | B6: 0.10437 | C6: -1.089845357 | D6: 0.1040514847
A7: 0.094746 | B7: 0.10702 | C7: -1.023439116 | D7: 0.1072655468
A8: 0.19989 | B8: 0.10728 | C8: -0.699208932 | D8: 0.107266
A9: 0.70414 | B9: 0.10728 | C9: -0.1523409841 | D9: 0.107266
A10: 0.9058 | B10: 0.10675 | C10: -0.04296768365 | D10: 0.107266
A11: 1 | B11: 0.10675 | C11: 0 | E11: =-0.0299*LOG(A11)^3 - 0.0084*LOG(A11)^2 - 0.0032*LOG(A11) + 0.1067 -> 0.1067
A12: 1.9989 | B12: 0.10411 | C12: 0.300791068 | E12: =-0.0299*LOG(A12)^3 - 0.0084*LOG(A12)^2 - 0.0032*LOG(A12) + 0.1067 -> 0.1041637732
A13: 3.0232 | B13: 0.10013 | C13: 0.4804668789 | E13: 0.09990702013
A14: 5.0029 | B14: 0.090066 | C14: 0.6992218221 | E14: 0.0901341017
A15: 7.9148 | B15: 0.075497 | C15: 0.8984399451 | E15: 0.07536061231
A16: 9.9105 | B16: 0.065695 | C16: 0.9960955659 | E16: 0.06562682271
